bitfinex/quotes_ETHUSD_20240707
["timestamp","ask_amount","ask_price","bid_price","bid_amount"]
[1720385345165,4.1533165,3004.5,3004.4,0.988]
[1720385345482,4.15331689,3004.5,3004.4,0.988]
[1720385346652,4.15333019,3004.5,3004.4,0.988]
[1720385346865,3.0,3004.5,3004.4,0.988]
[1720385347488,4.74145499,3004.5,3004.4,0.988]
[1720385348987,4.63246176,3004.5,3004.4,0.988]
[1720385349760,3.47909424,3004.5,3004.4,0.988]
[1720385349964,4.63243343,3004.5,3004.4,0.988]
[1720385351799,4.74142445,3004.5,3004.4,0.988]
[1720385352585,4.74142445,3004.5,3004.1,2.3442]
[1720385352792,0.64874241,3004.4,3004.1,2.3442]
[1720385352976,5.4813,3004.5,3004.4,0.988]
[1720385353172,3.0,3004.5,3004.4,0.988]
[1720385353403,4.26238225,3004.5,3004.4,0.988]
[1720385356506,3.0,3004.5,3004.4,0.988]
[1720385356806,4.26236284,3004.5,3004.4,0.988]
[1720385357016,4.26236279,3004.5,3004.4,0.988]
[1720385358082,4.26234611,3004.5,3004.4,0.988]
[1720385359968,4.2623567,3004.5,3004.4,0.988]
[1720385363376,4.26235573,3004.5,3004.4,0.988]
[1720385366670,5.41571687,3004.5,3004.0,2.3588]
[1720385366875,1.26235479,3004.4,3004.0,2.3588]
[1720385367070,4.15336208,3004.5,3004.3,0.988]
[1720385367290,1.26235574,3004.4,3004.3,0.988]
[1720385367848,1.15336299,3004.4,3004.3,0.988]
[1720385368132,1.26235554,3004.4,3004.3,0.988]
[1720385368437,1.15336326,3004.4,3004.3,0.988]
[1720385368601,1.26235608,3004.4,3004.3,0.988]
[1720385370020,1.26235592,3004.4,3004.3,0.988]
[1720385372701,1.61076446,3004.4,3004.3,0.988]
[1720385373337,0.34840854,3004.4,3004.3,0.988]
[1720385373558,1.61075127,3004.4,3004.3,0.988]
[1720385374925,1.61075134,3004.4,3004.3,3.2761]
[1720385375236,1.61075134,3004.4,3004.3,3.61036706]
[1720385376636,1.61075134,3004.4,3004.3,3.2761]
[1720385376637,0.34840854,3004.4,3004.3,3.2761]
[1720385376812,1.61070878,3004.4,3004.3,0.988]
[1720385377204,1.61070892,3004.4,3004.3,0.988]
[1720385378440,1.61070956,3004.4,3004.3,0.988]
[1720385379999,0.34840854,3004.4,3004.3,0.988]
[1720385380203,1.71973629,3004.4,3004.3,0.988]
[1720385381446,1.71973629,3004.4,3004.3,1.31561]
[1720385381743,0.56639099,3004.4,3004.3,1.31561]
[1720385383428,0.56638468,3004.4,3004.3,1.31561]
[1720385384247,0.56638468,3004.4,3004.3,3.78351]
[1720385384431,0.45739986,3004.4,3004.3,3.85007749]
[1720385385253,0.07106856,3004.8,3004.4,2.4679]
[1720385385438,0.07106856,3004.8,3004.7,0.988]
[1720385385637,0.07106856,3004.8,3004.7,3.4559]
[1720385387333,0.07106856,3004.8,3004.7,3.52245267]
[1720385388012,0.07106856,3004.8,3004.7,3.4559]
[1720385388341,0.07106856,3004.8,3004.7,4.034472]
[1720385391562,0.07106856,3004.8,3004.7,1.566572]
[1720385391857,0.07106856,3004.8,3004.7,0.988]
[1720385393218,0.07106856,3004.8,3004.7,3.4559]
[1720385394422,0.0758295,3005.0,3004.7,3.4559]
[1720385394619,0.34841443,3005.2,3005.0,2.4679]
[1720385394932,3.0,3005.7,3005.1,1.33359]
[1720385395133,0.10895043,3005.6,3005.1,0.34559]
[1720385395362,0.10895043,3005.6,3005.5,0.988]
[1720385395657,0.10894886,3005.6,3005.5,0.988]
[1720385396057,3.0,3005.7,3005.5,0.988]
[1720385398381,3.0,3005.7,3005.1,2.4679]
[1720385398562,0.3,3005.6,3005.1,2.4679]
[1720385398767,3.0,3005.7,3005.5,0.988]
[1720385402385,3.0,3005.7,3005.6,0.988]
[1720385402746,5.4063,3005.7,3004.9,3.0]
[1720385402942,5.4063,3005.7,3005.6,0.988]
[1720385403147,5.94693,3005.7,3005.6,0.988]
[1720385403348,5.94693,3005.7,3004.5,2.3506]
[1720385403349,2.4063,3005.1,3004.5,2.3506]
[1720385403654,3.0,3005.2,3005.0,0.988]
[1720385404279,3.0,3005.2,3005.1,0.988]
[1720385404446,3.54063,3005.2,3005.1,0.988]
[1720385405348,4.69379478,3005.2,3005.1,0.988]
[1720385405652,4.69379355,3005.2,3005.1,0.988]
[1720385406186,3.54063,3005.2,3005.1,0.988]
[1720385409490,4.69378865,3005.2,3005.1,0.988]
[1720385409693,3.0,3005.2,3005.1,0.988]
[1720385410665,2.4063,3005.8,3005.5,996.65153184]
[1720385410995,3.0,3005.6,3005.5,996.65153184]
[1720385411150,4.26199666,3005.6,3005.5,997.63953184]
[1720385412062,4.26199745,3005.6,3005.5,997.63953184]
[1720385412543,4.26199745,3005.6,3005.5,996.65153184]
[1720385412798,7.3127272,3005.6,3005.5,997.63953184]
[1720385415213,7.3127272,3005.6,3005.5,996.65153184]
[1720385415397,8.75576687,3005.6,3005.5,996.65153184]
[1720385415582,7.66140196,3005.6,3005.5,996.65153184]
[1720385415783,6.15970174,3005.6,3005.5,997.63953184]
[1720385415985,6.64601474,3005.6,3005.5,997.63953184]
[1720385418645,5.49287119,3005.6,3005.5,997.63953184]
[1720385418854,6.64600554,3005.6,3005.5,997.63953184]
[1720385419141,1.15313435,3005.6,3005.5,997.63953184]
[1720385419342,1.79094238,3006.2,3005.5,997.63953184]
[1720385419634,1.26181906,3006.0,3005.6,3.39800877]
[1720385419794,1.1528726,3006.0,3005.9,0.988]
[1720385419995,1.26177774,3006.0,3005.9,0.988]
[1720385420999,1.26177774,3006.0,3005.6,3.39800877]
[1720385421195,1.79094238,3006.2,3005.9,0.988]
[1720385421406,1.26175981,3006.1,3005.5,996.65153184]
[1720385421612,1.26175981,3006.0,3005.5,1000.04954061]
[1720385421812,1.79094238,3006.2,3005.9,0.988]
[1720385422043,1.26176036,3006.1,3005.5,1000.04954061]
[1720385422346,1.26176036,3006.0,3005.6,2.68592472]
[1720385422550,4.79094238,3006.2,3005.9,0.988]
[1720385422754,1.26174394,3006.1,3005.5,996.65153184]
[1720385423045,1.26174394,3006.0,3005.5,996.65153184]
[1720385423346,4.79094238,3006.2,3005.9,0.988]
[1720385423646,1.26173617,3006.1,3005.5,996.65153184]
[1720385423849,1.26173617,3006.0,3005.6,3.39800877]
[1720385424001,1.15279687,3005.9,3005.5,996.65153184]
[1720385424209,4.79094238,3006.2,3005.5,996.65153184]
[1720385424210,1.15279687,3006.1,3005.8,0.988]
[1720385424405,1.21176054,3006.0,3005.5,996.65153184]
[1720385424648,4.79094238,3006.2,3006.0,0.988]
[1720385424812,1.15281904,3006.1,3006.0,0.988]
[1720385425209,1.15281879,3006.1,3006.0,0.988]
[1720385425510,4.79094238,3006.2,3006.0,0.988]
[1720385425712,1.15281355,3006.1,3006.0,0.988]
[1720385428051,4.79094238,3006.2,3006.0,0.988]
[1720385428206,1.15279128,3006.1,3006.0,0.988]
[1720385428638,1.15279089,3006.1,3006.0,0.988]
[1720385429852,4.79094238,3006.2,3006.0,0.988]
[1720385430564,1.79094238,3006.2,3006.0,0.988]
[1720385430766,1.79094238,3006.2,3006.0,1.32266]
[1720385432179,7.45,3006.8,3006.1,2.52762887]
[1720385432468,1.5,3008.3,3006.7,3.4491]
[1720385432469,10.45,3007.5,3006.7,3.4491]
[1720385432700,2.19742063,3007.4,3006.7,2.4611]
[1720385432868,1.15242063,3007.3,3006.7,2.4611]
[1720385433076,1.15242063,3007.4,3007.2,0.988]
[1720385433245,1.15236763,3007.3,3006.7,2.4611]
[1720385433578,5.11094238,3007.5,3007.3,0.988]
[1720385434567,5.11094238,3007.5,3006.7,2.4611]
[1720385434568,5.11094238,3007.5,3007.2,2.368]
[1720385435185,0.51109424,3007.4,3007.2,2.368]
[1720385435470,0.51109424,3007.4,3006.8,2.368]
[1720385437240,3.0,3007.1,3006.8,2.368]
[1720385437439,3.0,3007.1,3006.4,2.368]
[1720385439527,3.0,3006.7,3006.4,2.368]
[1720385439735,0.3,3006.6,3005.5,999.03583184]
[1720385439927,0.3,3006.6,3006.0,2.368]
[1720385446285,3.0,3006.3,3006.0,2.368]
[1720385447134,5.4572,3006.3,3005.6,2.368]
[1720385447349,6.18201424,3006.3,3005.6,2.368]
[1720385447554,1.15285103,3006.2,3005.6,2.368]
[1720385447749,6.18201424,3006.3,3005.6,2.368]
[1720385448076,3.0,3005.9,3005.6,2.368]
[1720385448783,3.0,3005.9,3005.5,996.65153184]
[1720385449275,3.3,3005.9,3005.5,996.65153184]
[1720385449450,1.15300364,3005.8,3005.5,996.65153184]
[1720385449657,1.15300364,3005.7,3005.5,996.65153184]
[1720385451079,1.15310693,3005.6,3005.5,996.65153184]
[1720385451279,3.0,3005.8,3005.5,996.65153184]
[1720385451504,1.7831059,3005.7,3005.5,996.65153184]
[1720385451782,2.4575,3005.6,3005.5,996.65153184]
[1720385452081,3.6106077,3005.6,3005.5,996.65153184]
[1720385452578,6.6106077,3005.6,3005.5,996.65153184]
[1720385454161,5.4575,3005.6,3005.5,996.65153184]
[1720385454389,7.22526244,3005.6,3005.5,996.65153184]
[1720385454569,6.07205545,3005.6,3005.5,996.65153184]
[1720385454773,7.22524596,3005.6,3005.5,996.65153184]
[1720385455194,6.07205545,3005.6,3005.5,996.65153184]
[1720385455766,7.22520961,3005.6,3005.5,996.65153184]
[1720385456029,7.22523308,3005.6,3005.5,996.65153184]
[1720385456170,6.07205545,3005.6,3005.5,996.65153184]
[1720385460715,5.4575,3005.6,3005.5,996.65153184]
[1720385461393,10.12274105,3005.6,3005.5,995.14422577]
[1720385461715,11.96904105,3005.6,3005.5,993.70357175]
[1720385462027,13.5561506,3005.6,3005.5,993.70357175]
[1720385462594,12.0561506,3005.6,3005.5,993.70357175]
[1720385462826,12.40456421,3005.6,3005.5,993.70357175]
[1720385463274,11.25132316,3005.6,3005.5,993.70357175]
[1720385463565,12.40474793,3005.6,3005.5,993.70357175]
[1720385463761,11.25132316,3005.6,3005.5,992.97757175]
[1720385463974,12.40475102,3005.6,3005.5,992.97757175]
[1720385464471,15.40475102,3005.6,3005.5,992.97757175]
[1720385464622,15.40475102,3005.6,3005.5,992.43707175]
[1720385465066,15.40475102,3005.6,3005.5,991.74307175]
[1720385465472,13.90475102,3005.6,3005.5,991.74307175]
[1720385465673,15.40475102,3005.6,3005.5,991.74307175]
[1720385466343,15.40475102,3005.6,3005.5,990.87247175]
[1720385466526,14.25132316,3005.6,3005.5,990.87247175]
[1720385466726,15.40477587,3005.6,3005.5,990.87247175]
[1720385466969,15.40477587,3005.6,3005.5,990.58247175]
[1720385467564,20.86003587,3005.6,3005.5,990.58247175]
[1720385467767,20.86003587,3005.6,3005.5,990.03500175]
[1720385468273,19.36003587,3005.6,3005.5,990.03500175]
[1720385468471,20.86003587,3005.6,3005.5,985.14644612]
[1720385468626,20.43827886,3005.6,3005.5,979.26521912]
[1720385468830,20.43827886,3005.6,3005.5,979.23374821]
[1720385469031,20.77139515,3005.6,3005.5,979.23374821]
[1720385469831,18.86989945,3005.6,3005.5,978.26604821]
[1720385470026,21.1054421,3005.6,3005.5,976.97523325]
[1720385470230,21.1054421,3005.6,3005.5,976.19623325]
[1720385470427,21.45176638,3005.6,3005.5,976.19623325]
[1720385470669,21.45176638,3005.6,3005.5,975.99603325]
[1720385470870,21.1054421,3005.6,3005.5,975.99603325]
[1720385471055,25.451726,3005.6,3005.5,975.99603325]
[1720385471387,24.701526,3005.6,3005.5,973.11813325]
[1720385471534,24.701526,3005.6,3005.5,972.36224325]
[1720385471730,26.35611239,3005.6,3005.5,959.07012415]
[1720385471975,26.49610284,3005.6,3005.5,944.33042593]
[1720385472200,26.93420001,3005.6,3005.5,940.67433165]
[1720385472340,27.35318509,3005.6,3005.5,938.75599168]
[1720385472542,27.35318509,3005.6,3005.5,937.68892549]
[1720385472746,27.35318509,3005.6,3005.5,937.02092549]
[1720385473051,27.35378134,3005.6,3005.5,936.15268299]
[1720385473377,27.35378134,3005.6,3005.5,912.58597341]
[1720385473572,27.35385919,3005.6,3005.5,909.84949872]
[1720385473886,27.35385919,3005.6,3005.5,907.27209389]
[1720385474124,21.89859919,3005.6,3005.5,907.27209389]
[1720385474240,83.12634119,3005.6,3005.5,902.31479104]
[1720385474436,87.44919361,3005.6,3005.5,885.52380457]
[1720385474779,87.3900479,3005.6,3005.5,880.76923105]
[1720385474943,85.8900479,3005.6,3005.5,879.90569104]
[1720385475146,85.8900479,3005.6,3005.5,879.23769104]
[1720385475329,87.3900479,3005.6,3005.5,878.49769134]
[1720385475534,85.8900479,3005.6,3005.5,877.55637691]
[1720385475730,87.3900479,3005.6,3005.5,874.96751494]
[1720385475965,87.3900479,3005.6,3005.5,873.11719421]
[1720385476198,83.92757481,3005.6,3005.5,869.92699421]
[1720385476347,83.92757481,3005.6,3005.5,864.16477691]
[1720385476348,87.73855705,3005.6,3005.5,864.16477691]
[1720385476538,87.73855705,3005.6,3005.5,863.49677691]
[1720385476739,86.23855705,3005.6,3005.5,861.17883013]
[1720385476951,87.73855705,3005.6,3005.5,854.28303013]
[1720385477166,87.73855705,3005.6,3005.5,853.7168876]
[1720385477390,87.73855705,3005.6,3005.5,815.92796534]
[1720385477540,86.59455705,3005.6,3005.5,807.08230281]
[1720385477742,84.22655705,3005.6,3005.5,799.72050281]
[1720385477951,84.22655705,3005.6,3005.5,796.83260853]
[1720385478274,84.22655705,3005.6,3005.5,783.45586873]
[1720385478477,84.22655705,3005.6,3005.5,779.92364998]
[1720385478652,84.22655705,3005.6,3005.5,773.36344998]
[1720385478974,84.22655705,3005.6,3005.5,767.73587647]
[1720385479149,86.59455705,3005.6,3005.5,762.96222149]
[1720385479358,81.15231026,3005.6,3005.5,757.36368101]
[1720385479681,84.1972882,3005.6,3005.5,756.36148101]
[1720385479987,84.1972882,3005.6,3005.5,755.18075234]
[1720385480183,84.1972882,3005.6,3005.5,753.75209429]
[1720385480333,84.1972882,3005.6,3005.5,752.27902816]
[1720385480533,87.0895685,3005.6,3005.5,751.93552816]
[1720385480782,87.0895685,3005.6,3005.5,751.73532816]
[1720385481077,89.2472882,3005.6,3005.5,751.63513011]
[1720385481238,89.2472882,3005.6,3005.5,751.53493206]
[1720385481646,89.2472882,3005.6,3005.5,751.31353406]
[1720385481853,89.2472882,3005.6,3005.5,750.88603374]
[1720385482578,84.70231026,3005.6,3005.5,750.69197374]
[1720385482777,89.24696776,3005.6,3005.5,750.69197374]
[1720385483081,89.24698546,3005.6,3005.5,750.12680715]
[1720385483381,89.24698546,3005.6,3005.5,749.92660715]
[1720385483678,89.24698546,3005.6,3005.5,749.72621115]
[1720385483878,90.58247546,3005.6,3005.5,749.72621115]
[1720385484067,90.58247546,3005.6,3005.5,749.31459224]
[1720385484474,90.58247546,3005.6,3005.5,749.21441326]
[1720385484778,90.23400934,3005.6,3005.5,739.28745234]
[1720385484986,90.58114206,3005.6,3005.5,737.96385234]
[1720385485277,90.58114206,3005.6,3005.5,728.77357769]
[1720385485485,90.58114206,3005.6,3005.5,728.34116898]
[1720385485638,90.63755015,3005.6,3005.5,725.41081039]
[1720385485843,90.98617738,3005.6,3005.5,721.75122417]
[1720385486044,90.98617738,3005.6,3005.5,717.85129521]
[1720385486278,90.98617738,3005.6,3005.5,717.23129521]
[1720385486444,90.98617738,3005.6,3005.5,714.58642639]
[1720385486656,84.58438338,3005.6,3005.5,711.97577831]
[1720385486855,82.62953096,3005.6,3005.5,709.75559933]
[1720385487198,80.22687266,3005.6,3005.5,707.11628513]
[1720385487479,80.22687266,3005.6,3005.5,704.76015513]
[1720385487847,80.22687266,3005.6,3005.5,704.65997615]
[1720385487848,78.61915296,3005.6,3005.5,704.65997615]
[1720385488048,80.22687266,3005.6,3005.5,704.65997615]
[1720385488250,80.22621788,3005.6,3005.5,704.65997615]
[1720385488561,80.22621788,3005.6,3005.5,704.39144819]
[1720385488760,80.22621788,3005.6,3005.5,704.19124819]
[1720385489069,80.77621788,3005.6,3005.5,704.19124819]
[1720385489286,80.77631362,3005.6,3005.5,703.99104819]
[1720385489581,80.77631362,3005.6,3005.5,703.80165645]
[1720385489885,80.77631362,3005.6,3005.5,703.60131645]
[1720385490085,80.77631362,3005.6,3005.5,703.40111645]
[1720385490397,80.77631362,3005.6,3005.5,703.20091645]
[1720385490799,76.16859392,3005.6,3005.5,703.10073747]
[1720385490999,42.27123684,3005.6,3005.5,703.10073747]
[1720385491204,39.52517125,3005.6,3005.5,702.90053757]
[1720385491482,38.18968125,3005.6,3005.5,702.90053757]
[1720385491681,38.18968125,3005.6,3005.5,702.62854877]
[1720385491894,57.41394725,3005.6,3005.5,702.42834877]
[1720385492183,59.72164358,3005.6,3005.5,701.29814877]
[1720385492488,59.72146411,3005.6,3005.5,697.86720522]
[1720385492692,60.27146411,3005.6,3005.5,697.57755649]
[1720385493000,56.80986569,3005.6,3005.5,692.09955649]
[1720385493169,61.12866879,3005.6,3005.5,691.85905649]
[1720385493350,61.12866879,3005.6,3005.5,691.65885649]
[1720385493867,61.12866879,3005.6,3005.5,691.45865649]
[1720385494251,61.12873329,3005.6,3005.5,691.25831487]
[1720385494697,61.12873329,3005.6,3005.5,690.69021855]
[1720385495075,61.12873329,3005.6,3005.5,690.49001855]
[1720385495581,61.12873329,3005.6,3005.5,690.29001855]
[1720385495582,60.27165104,3005.6,3005.5,690.29001855]
[1720385495784,55.72760163,3005.6,3005.5,690.07001855]
[1720385495952,60.2715509,3005.6,3005.5,690.07001855]
[1720385496151,58.5444509,3005.6,3005.5,689.86981855]
[1720385496357,43.1944629,3005.6,3005.5,689.38918823]
[1720385496684,41.6944629,3005.6,3005.5,689.11348823]
[1720385496873,43.1944629,3005.6,3005.5,688.81338823]
[1720385497306,43.1944629,3005.6,3005.5,688.71321661]
[1720385497812,41.6944629,3005.6,3005.5,688.51301661]
[1720385498017,41.6944629,3005.6,3005.5,688.41285201]
[1720385498180,42.8606629,3005.6,3005.5,688.21285201]
[1720385498514,41.6944629,3005.6,3005.5,687.82336199]
[1720385498887,41.6944629,3005.6,3005.5,687.62316199]
[1720385499217,39.73267081,3005.6,3005.5,687.62316199]
[1720385499368,43.19413717,3005.6,3005.5,686.44739199]
[1720385499704,43.19413717,3005.6,3005.5,686.22719199]
[1720385499902,43.19413717,3005.6,3005.5,684.64519199]
[1720385500111,43.19413717,3005.6,3005.5,682.20129199]
[1720385500270,43.19413717,3005.6,3005.5,680.14612699]
[1720385500671,43.19413717,3005.6,3005.5,680.04596239]
[1720385501097,43.19413717,3005.6,3005.5,679.78726239]
[1720385501500,43.19413717,3005.6,3005.5,679.58706239]
[1720385501707,43.19413717,3005.6,3005.5,679.38686239]
[1720385502018,41.69413717,3005.6,3005.5,677.81117863]
[1720385502310,41.69413717,3005.6,3005.5,677.71101035]
[1720385502511,39.47053919,3005.6,3005.5,677.71101035]
[1720385502710,42.86032645,3005.6,3005.5,677.61084207]
[1720385502873,38.65051363,3005.6,3005.5,677.57914207]
[1720385503074,43.19414415,3005.6,3005.5,677.47897379]
[1720385503403,42.86034415,3005.6,3005.5,676.95143129]
[1720385503599,43.19414415,3005.6,3005.5,676.85126301]
[1720385504026,42.86034415,3005.6,3005.5,676.85126301]
[1720385504191,42.86034415,3005.6,3005.5,676.75109473]
[1720385504395,42.86034415,3005.6,3005.5,675.97089473]
[1720385505086,42.86034415,3005.6,3005.5,675.77069473]
[1720385505283,38.29102615,3005.6,3005.5,675.77069473]
[1720385505505,35.98337863,3005.6,3005.5,675.77069473]
[1720385505902,36.70275014,3005.6,3005.5,675.77069473]
[1720385506222,35.54900314,3005.6,3005.5,675.77069473]
[1720385506518,34.56369414,3005.6,3005.5,675.77069473]
[1720385506932,34.56369414,3005.6,3005.5,675.67052645]
[1720385507225,34.56369414,3005.6,3005.5,675.57037723]
[1720385507593,34.56369414,3005.6,3005.5,675.37017723]
[1720385507938,34.56369414,3005.6,3005.5,675.16997723]
[1720385508728,34.56369414,3005.6,3005.5,674.96977723]
[1720385509105,32.32788463,3005.6,3005.5,674.76957723]
[1720385509316,32.51367891,3005.6,3005.5,674.56937723]
[1720385509497,8.12531866,3005.6,3005.5,676.86337723]
[1720385509685,9.62531866,3005.6,3005.5,680.261386]
[1720385510290,9.62531866,3005.6,3005.5,676.86337723]
[1720385511009,5.62531866,3005.6,3005.5,676.86337723]
[1720385511509,8.62531866,3005.6,3005.5,676.86337723]
[1720385511935,8.62531866,3005.6,3005.5,676.33107723]
[1720385512240,10.12531866,3005.6,3005.5,676.33107723]
[1720385512430,10.12471013,3005.6,3005.5,676.33107723]
[1720385512958,8.62471198,3005.6,3005.5,676.33107723]
[1720385513237,10.12471198,3005.6,3005.5,673.49267723]
[1720385513739,8.62471198,3005.6,3005.5,673.49267723]
[1720385513935,8.62471198,3005.6,3005.5,672.96837723]
[1720385513936,10.12471198,3005.6,3005.5,672.96837723]
[1720385514153,16.18338914,3005.6,3005.5,672.96837723]
[1720385514438,20.18338914,3005.6,3005.5,672.96837723]
[1720385514737,20.18338914,3005.6,3005.5,672.42307723]
[1720385514941,20.18338914,3005.6,3005.5,671.73143418]
[1720385515602,19.10167253,3005.6,3005.5,671.73143418]
[1720385515805,20.1836521,3005.6,3005.5,671.73143418]
[1720385516216,20.13950221,3005.6,3005.5,671.73143418]
[1720385517987,22.14250221,3005.6,3005.5,667.22026486]
[1720385518547,22.14250221,3005.6,3005.5,666.79905534]
[1720385519043,22.14250221,3005.6,3005.5,666.59885534]
[1720385519268,22.14252246,3005.6,3005.5,666.49871582]
[1720385519412,22.14252246,3005.6,3005.5,666.3985763]
[1720385519945,22.14252246,3005.6,3005.5,666.29843678]
[1720385520314,22.14252246,3005.6,3005.5,666.09815607]
[1720385520728,22.14252246,3005.6,3005.5,665.99801488]
[1720385521240,22.14252246,3005.6,3005.5,665.89787369]
[1720385521637,22.14255902,3005.6,3005.5,665.69767369]
[1720385522164,16.51055841,3005.6,3005.5,665.69767369]
[1720385522339,17.66418984,3005.6,3005.5,665.69767369]
[1720385522664,12.58092284,3005.6,3005.5,665.69767369]
[1720385523582,13.13083904,3005.6,3005.5,665.69767369]
[1720385524940,13.13064229,3005.6,3005.5,665.69767369]
[1720385525343,14.63064229,3005.6,3005.5,665.69767369]
[1720385527489,13.13064229,3005.6,3005.5,665.69767369]
[1720385528342,11.97713847,3005.6,3005.5,665.69767369]
[1720385528542,13.13064853,3005.6,3005.5,665.69767369]
[1720385529178,12.58064853,3005.6,3005.5,665.69767369]
[1720385530454,8.58064853,3005.6,3005.5,665.69767369]
[1720385530839,8.52424044,3005.6,3005.5,672.84477369]
[1720385531683,8.5241318,3005.6,3005.5,672.84477369]
[1720385532074,8.52398025,3005.6,3005.5,672.84477369]
[1720385532886,8.87228786,3005.6,3005.5,672.84477369]
[1720385533256,7.71889293,3005.6,3005.5,672.84477369]
[1720385533459,8.87226838,3005.6,3005.5,672.84477369]
[1720385533972,8.87226838,3005.6,3005.5,672.31267369]
[1720385534797,6.63727401,3005.6,3005.5,672.31267369]
[1720385535095,8.87237811,3005.6,3005.5,672.31267369]
[1720385538109,8.87230971,3005.6,3005.5,672.31267369]
[1720385541505,7.79065268,3005.6,3005.5,671.96491724]
[1720385541879,8.80046964,3005.6,3005.5,671.96491724]
[1720385542124,7.7188712,3005.6,3005.5,663.59138847]
[1720385542265,8.87224888,3005.6,3005.5,663.59138847]
[1720385543432,8.87224888,3005.6,3005.5,662.52158847]
[1720385544724,7.79074409,3005.6,3005.5,662.52158847]
[1720385544895,8.8724577,3005.6,3005.5,662.52158847]
[1720385545721,8.8724577,3005.6,3005.5,669.69698847]
[1720385546023,8.8724577,3005.6,3005.5,673.09499724]
[1720385546232,8.8724577,3005.6,3005.5,669.69698847]
[1720385547923,6.63727401,3005.6,3005.5,669.69698847]
[1720385548129,8.87233901,3005.6,3005.5,669.69698847]
[1720385548630,8.8723272,3005.6,3005.5,669.16446249]
[1720385549593,8.8723272,3005.6,3005.5,668.63796249]
[1720385551297,7.79068635,3005.6,3005.5,670.19999072]
[1720385551525,8.58323642,3005.6,3005.5,670.19999072]
[1720385551710,5.58323642,3005.6,3005.5,670.19999072]
[1720385551916,1.50142562,3005.6,3005.5,670.19999072]
[1720385553163,1.50139568,3005.6,3005.5,670.19999072]
[1720385554664,0.34830761,3005.6,3005.5,670.19999072]
[1720385554852,1.50137138,3005.6,3005.5,670.19999072]
[1720385556964,1.50137138,3005.6,3005.5,672.56799072]
[1720385558058,1.50145215,3005.6,3005.5,672.56799072]
[1720385559967,1.50145215,3005.6,3005.5,671.00596249]
[1720385561147,0.34830761,3005.6,3005.5,671.00596249]
[1720385561325,1.50146695,3005.6,3005.5,671.00596249]
[1720385561825,1.50147152,3005.6,3005.5,671.00596249]
[1720385564764,1.50142471,3005.6,3005.5,671.00596249]
[1720385564966,1.50142471,3005.6,3005.5,674.40397126]
[1720385568060,1.5013554,3005.6,3005.5,674.40397126]
[1720385571167,0.34830761,3005.6,3005.5,674.40397126]
[1720385571373,1.50136053,3005.6,3005.5,674.40397126]
[1720385571641,1.50136174,3005.6,3005.5,674.40397126]
[1720385572950,1.50136031,3005.6,3005.5,674.40397126]
[1720385574475,0.34830761,3005.6,3005.5,674.40397126]
[1720385574679,1.50136345,3005.6,3005.5,674.40397126]
[1720385576671,1.50136345,3005.6,3005.5,673.02397126]
[1720385577877,0.34830761,3005.6,3005.5,673.02397126]
[1720385578083,1.5013629,3005.6,3005.5,673.02397126]
[1720385578599,1.5013629,3005.6,3005.5,669.62596249]
[1720385580798,0.34830761,3005.6,3005.5,662.45056249]
[1720385581099,1.50145087,3005.6,3005.5,662.45056249]
[1720385581311,0.34830761,3005.6,3005.5,662.45056249]
[1720385581465,1.50147107,3005.6,3005.5,662.45056249]
[1720385582754,1.50142447,3005.6,3005.5,662.45056249]
[1720385583895,1.50143095,3005.6,3005.5,662.45056249]
[1720385587093,0.34830761,3005.6,3005.5,662.45056249]
[1720385587402,2.58282446,3005.6,3005.5,662.45056249]
[1720385587709,5.58282446,3005.6,3005.5,662.45056249]
[1720385588964,5.58282446,3005.6,3005.5,662.19336755]
[1720385590467,6.66456802,3005.6,3005.5,662.19336755]
[1720385590788,5.58308284,3005.6,3005.5,662.19336755]
[1720385591110,6.66456904,3005.6,3005.5,662.19336755]
[1720385591294,6.66456904,3005.6,3005.5,669.01216755]
[1720385591599,9.66456904,3005.6,3005.5,670.34271752]
[1720385591814,8.58308284,3005.6,3005.5,670.34271752]
[1720385592706,9.66435617,3005.6,3005.5,670.34271752]
[1720385592865,9.66435617,3005.6,3005.5,669.01216755]
[1720385593622,7.42979324,3005.6,3005.5,669.01216755]
[1720385593962,8.58273556,3005.6,3005.5,662.19336755]
[1720385595512,8.23442795,3005.6,3005.5,662.19336755]
[1720385597011,8.23445226,3005.6,3005.5,662.19336755]
[1720385597523,8.23445226,3005.6,3005.5,661.20536755]
[1720385597819,8.23445226,3005.6,3005.5,662.19336755]
[1720385600321,6.0,3005.6,3005.5,662.19336755]
[1720385600615,8.2344051,3005.6,3005.5,662.19336755]
[1720385601532,8.2344051,3005.6,3005.5,665.59137632]
[1720385602192,8.23442516,3005.6,3005.5,665.59137632]
[1720385602531,8.23442516,3005.6,3005.5,662.19336755]
[1720385603612,6.0,3005.6,3005.5,662.19336755]
[1720385603781,8.23448706,3005.6,3005.5,662.19336755]
[1720385604219,8.23448706,3005.6,3005.5,661.20536755]
[1720385604420,8.23448706,3005.6,3005.5,662.19336755]
[1720385607078,8.23471354,3005.6,3005.5,662.19336755]
[1720385608719,8.23458651,3005.6,3005.5,662.19336755]
[1720385610385,7.08138067,3005.6,3005.5,662.19336755]
[1720385610585,8.23463668,3005.6,3005.5,662.19336755]
[1720385611100,8.23463829,3005.6,3005.5,662.19336755]
[1720385613255,8.23463829,3005.6,3005.5,665.59137632]
[1720385613256,5.23463829,3005.6,3005.5,665.59137632]
[1720385613803,5.23427777,3005.6,3005.5,665.59137632]
[1720385614107,5.23427635,3005.6,3005.5,664.60337632]
[1720385614323,5.23427635,3005.6,3005.5,665.59137632]
[1720385615280,5.23427635,3005.6,3005.5,662.19336755]
[1720385617030,3.0,3005.6,3005.5,662.19336755]
[1720385617234,5.23440356,3005.6,3005.5,662.19336755]
[1720385620331,4.08127867,3005.6,3005.5,662.19336755]
[1720385620500,4.0812852,3005.6,3005.5,662.19336755]
[1720385620701,5.23441527,3005.6,3005.5,662.19336755]
[1720385620895,5.2344178,3005.6,3005.5,662.19336755]
[1720385621124,5.2344178,3005.6,3005.5,661.20536755]
[1720385621337,5.2344178,3005.6,3005.5,662.19336755]
[1720385622221,5.2344178,3005.6,3005.5,661.20536755]
[1720385622532,5.2344178,3005.6,3005.5,662.19336755]
[1720385622700,8.58267735,3005.6,3005.5,662.19336755]
[1720385623836,8.58287366,3005.6,3005.5,662.19336755]
[1720385623996,8.58287645,3005.6,3005.5,662.19336755]
[1720385627167,8.65474913,3005.6,3005.5,662.19336755]
[1720385627340,9.73617731,3005.6,3005.5,662.19336755]
[1720385630573,9.73620661,3005.6,3005.5,662.19336755]
[1720385630935,9.7362091,3005.6,3005.5,662.19336755]
[1720385631651,9.7362091,3005.6,3005.5,661.67406748]
[1720385632272,9.73635391,3005.6,3005.5,661.67406748]
[1720385633726,8.58303222,3005.6,3005.5,661.67406748]